bitfinex-derivatives/quotes_SOLF0:USTF0_20260210
["timestamp","ask_amount","ask_price","bid_price","bid_amount"]
[1770701295504,8.74787387,86.083,86.042,13.63018146]
[1770701295710,8.74787387,86.082,86.042,13.63018146]
[1770701295908,3.98986832,86.08,86.042,13.63018146]
[1770701296212,8.75466885,86.079,86.042,13.63018146]
[1770701296414,8.75466885,86.078,86.042,13.63018146]
[1770701296612,8.75466885,86.077,86.042,13.63018146]
[1770701296813,8.75574481,86.076,86.042,13.63018146]
[1770701297015,8.75574481,86.075,86.042,13.63018146]
[1770701297311,3.98986832,86.08,86.042,13.63018146]
[1770701297614,8.75706062,86.079,86.042,13.63018146]
[1770701297815,8.75706062,86.078,86.042,13.63018146]
[1770701298014,8.75706062,86.077,86.042,13.63018146]
[1770701298208,8.75706062,86.076,86.042,13.63018146]
[1770701298406,8.75706062,86.075,86.042,13.63018146]
[1770701298711,8.75706062,86.074,86.042,13.63018146]
[1770701299015,3.98986832,86.08,86.042,13.63018146]
[1770701299208,8.76075901,86.079,86.042,13.63018146]
[1770701299412,8.76075901,86.078,86.042,13.63018146]
[1770701299611,8.76075901,86.077,86.042,13.63018146]
[1770701299915,8.76075901,86.076,86.042,13.63018146]
[1770701300210,3.98986832,86.08,86.042,13.63018146]
[1770701300515,8.7639375,86.079,86.042,13.63018146]
[1770701300718,8.7639375,86.078,86.042,13.63018146]
[1770701300916,8.7639375,86.077,86.042,13.63018146]
[1770701301116,8.7639375,86.076,86.042,13.63018146]
[1770701301311,8.76670535,86.075,86.042,13.63018146]
[1770701301510,3.98986832,86.08,86.042,13.63018146]
[1770701301812,8.76670535,86.079,86.042,13.63018146]
[1770701302013,8.76670535,86.078,86.042,13.63018146]
[1770701302312,8.76670535,86.077,86.042,13.63018146]
[1770701302513,8.76670535,86.076,86.042,13.63018146]
[1770701302712,8.76670535,86.075,86.042,13.63018146]
[1770701302915,8.76670535,86.074,86.042,13.63018146]
[1770701303111,3.98986832,86.08,86.042,13.63018146]
[1770701303318,8.77133491,86.079,86.042,13.63018146]
[1770701303516,8.77133491,86.078,86.042,13.63018146]
[1770701303815,8.77133491,86.077,86.042,13.63018146]
[1770701304016,8.77133491,86.076,86.042,13.63018146]
[1770701304217,3.98986832,86.08,86.042,13.63018146]
[1770701304218,8.77133491,86.075,86.042,13.63018146]
[1770701304417,8.77133491,86.074,86.042,13.63018146]
[1770701304618,8.77133491,86.073,86.042,13.63018146]
[1770701304813,3.98986832,86.08,85.988,13.52508217]
[1770701305014,3.98986832,86.06,86.001,13.51682095]
[1770701305214,14.75010027,86.08,86.02,3.98986832]
[1770701305407,14.75010027,86.08,86.021,13.51682095]
[1770701305408,8.77626177,86.079,86.021,13.51682095]
[1770701305611,8.77626177,86.078,86.021,13.51682095]
[1770701305812,8.77626177,86.077,86.021,13.51682095]
[1770701306008,8.77626177,86.076,86.021,13.51682095]
[1770701306214,8.77626177,86.075,86.021,13.51682095]
[1770701306514,8.77626177,86.074,86.021,13.51682095]
[1770701306720,3.98986832,86.08,86.023,13.65452576]
[1770701306721,8.77626177,86.073,86.023,13.65452576]
[1770701307022,8.77626177,86.072,86.023,13.65452576]
[1770701307210,8.77626177,86.071,86.023,13.65452576]
[1770701307413,8.77626177,86.07,86.023,13.65452576]
[1770701307610,8.77626177,86.069,86.023,13.65452576]
[1770701307813,8.77626177,86.068,86.024,10.4707]
[1770701308123,8.78223997,86.067,86.025,13.64582341]
[1770701308315,8.78223997,86.066,86.025,13.64582341]
[1770701308509,8.78223997,86.065,86.025,13.64582341]
[1770701308714,10.4641,86.079,86.025,13.64582341]
[1770701308910,8.78279202,86.078,86.025,13.64582341]
[1770701309219,8.78279202,86.077,86.025,13.64582341]
[1770701309422,8.78279202,86.076,86.025,13.64582341]
[1770701309623,8.78279202,86.075,86.025,13.64582341]
[1770701309820,8.78279202,86.074,86.025,13.64582341]
[1770701310123,8.78279202,86.073,86.025,13.64582341]
[1770701310323,8.78279202,86.072,86.025,13.64582341]
[1770701310521,8.78279202,86.071,86.025,13.64582341]
[1770701310723,8.78279202,86.07,86.025,13.64582341]
[1770701310920,8.78279202,86.069,86.027,13.61895031]
[1770701311122,10.76023195,86.096,85.976,13.61063806]
[1770701311322,3.98986832,86.06,86.001,13.61063806]
[1770701311626,8.77805083,86.059,86.001,13.61063806]
[1770701311827,3.98986832,86.06,86.001,13.61063806]
[1770701312121,8.77743741,86.059,86.001,13.61063806]
[1770701312424,8.77743741,86.059,86.0,3.98986832]
[1770701312425,3.98986832,86.06,86.012,13.6401047]
[1770701312627,8.77704424,86.059,86.012,13.6401047]
[1770701312825,3.98986832,86.06,86.012,13.6401047]
[1770701313020,8.77704424,86.059,86.012,13.6401047]
[1770701313223,3.98986832,86.06,86.012,13.6401047]
[1770701313424,8.77689081,86.059,86.012,13.6401047]
[1770701313625,3.98986832,86.06,86.012,13.6401047]
[1770701313819,8.77689081,86.059,86.012,13.6401047]
[1770701314124,3.98986832,86.06,86.012,13.6401047]
[1770701314325,8.77659869,86.059,86.012,13.6401047]
[1770701314628,3.98986832,86.06,86.012,13.6401047]
[1770701314827,8.77694481,86.059,86.012,13.6401047]
[1770701315029,3.98986832,86.06,86.012,13.6401047]
[1770701315230,8.77658899,86.059,86.012,13.6401047]
[1770701315528,3.98986832,86.06,86.012,13.6401047]
[1770701315722,8.77676034,86.059,86.012,13.6401047]
[1770701315923,3.98986832,86.06,86.012,13.6401047]
[1770701316127,8.77676034,86.059,86.012,13.6401047]
[1770701316327,10.4657,86.066,86.012,13.6401047]
[1770701316529,3.98986832,86.06,86.012,13.6401047]
[1770701316726,8.77675802,86.059,86.012,13.6401047]
[1770701316928,3.98986832,86.06,86.012,13.6401047]
[1770701317122,8.77675879,86.059,86.012,13.6401047]
[1770701317428,3.98986832,86.06,86.012,13.6401047]
[1770701317629,8.7767213,86.059,86.012,13.6401047]
[1770701317828,3.98986832,86.06,86.012,13.6401047]
[1770701318028,8.77671306,86.059,86.012,13.6401047]
[1770701318220,3.98986832,86.06,86.012,13.6401047]
[1770701318424,8.7767217,86.059,86.012,13.6401047]
[1770701318620,3.98986832,86.06,86.012,13.6401047]
[1770701318830,8.7767217,86.059,86.012,13.6401047]
[1770701319032,3.98986832,86.06,86.012,13.6401047]
[1770701319221,8.77655232,86.059,86.012,13.6401047]
[1770701319424,3.98986832,86.06,86.012,13.6401047]
[1770701319627,8.7767432,86.059,86.012,13.6401047]
[1770701319929,3.98986832,86.06,86.012,13.6401047]
[1770701320131,8.77674476,86.059,86.012,13.6401047]
[1770701320331,10.4671,86.054,86.012,13.6401047]
[1770701320530,8.7759284,86.053,86.012,13.6401047]
[1770701320730,8.7759284,86.052,86.012,13.6401047]
[1770701320932,8.7759284,86.051,86.012,13.6401047]
[1770701321131,8.77465552,86.05,86.012,13.6401047]
[1770701321326,3.98986832,86.06,86.012,13.6401047]
[1770701321532,8.77479001,86.059,86.012,13.6401047]
[1770701321727,8.77479001,86.058,86.012,13.6401047]
[1770701321928,8.77479001,86.057,86.012,13.6401047]
[1770701322131,8.77479001,86.056,86.012,13.6401047]
[1770701322333,8.77479001,86.055,86.012,13.6401047]
[1770701322531,8.77479001,86.054,86.012,13.6401047]
[1770701322732,8.77479001,86.053,86.012,13.6401047]
[1770701323033,8.77479001,86.052,86.012,13.6401047]
[1770701323233,8.77479001,86.051,86.012,13.6401047]
[1770701323434,3.98986832,86.06,86.012,13.6401047]
[1770701323637,8.77072267,86.059,86.012,13.6401047]
[1770701323830,8.77072267,86.058,86.012,13.6401047]
[1770701324030,8.77072267,86.057,86.012,13.6401047]
[1770701324235,8.77072267,86.056,86.012,13.6401047]
[1770701324434,8.77072267,86.055,86.012,13.6401047]
[1770701324634,8.77072267,86.054,86.012,13.6401047]
[1770701324936,8.77072267,86.053,86.012,13.6401047]
[1770701325137,8.77072267,86.052,86.012,13.6401047]
[1770701325442,3.98986832,86.06,86.012,13.6401047]
[1770701325630,8.76876966,86.059,86.012,13.6401047]
[1770701325826,8.76876966,86.058,86.012,13.6401047]
[1770701326035,8.76876966,86.057,86.012,13.6401047]
[1770701326239,8.76876966,86.056,86.012,13.6401047]
[1770701326429,3.98986832,86.06,86.012,13.6401047]
[1770701326636,8.76350164,86.059,86.012,13.6401047]
[1770701326835,8.76350164,86.058,86.012,13.6401047]
[1770701327042,8.76350164,86.057,86.012,13.6401047]
[1770701327244,3.98986832,86.06,86.012,13.6401047]
[1770701327545,8.76242383,86.059,86.012,13.6401047]
[1770701327742,8.76242383,86.058,86.012,13.6401047]
[1770701328044,8.76242383,86.057,86.012,13.6401047]
[1770701328249,3.98986832,86.07,86.019,13.46213992]
[1770701328439,8.76155557,86.069,86.019,13.46213992]
[1770701328743,8.76155557,86.068,86.019,13.46213992]
[1770701328942,8.76155557,86.067,86.019,13.46213992]
[1770701329143,8.76155557,86.066,86.021,13.45546647]
[1770701329344,3.98986832,86.06,86.021,13.45546647]
[1770701329539,8.76155557,86.059,86.021,13.45546647]
[1770701329741,8.76155557,86.058,86.021,13.45546647]
[1770701330044,8.76155557,86.057,86.021,13.45546647]
[1770701330244,3.99152402,86.06,86.021,13.45546647]
[1770701330545,8.76175908,86.059,86.021,13.45546647]
[1770701330744,8.76175908,86.058,86.021,13.45546647]
[1770701330947,8.76175908,86.058,85.956,34.87]
[1770701330948,3.99211106,86.05,86.001,13.45946357]
[1770701331146,8.76175908,86.049,86.001,13.45946357]
[1770701331341,8.76175908,86.048,86.001,13.45946357]
[1770701331540,8.76175908,86.047,86.001,13.45946357]
[1770701331741,3.99211106,86.05,86.001,13.45946357]
[1770701332045,8.76015633,86.049,86.001,13.45946357]
[1770701332244,8.76015633,86.048,86.001,13.45946357]
[1770701332444,8.76015633,86.047,86.001,13.45946357]
[1770701332644,3.99211106,86.05,86.001,13.45946357]
[1770701332846,3.99211106,86.06,86.01,13.46018543]
[1770701333038,8.7602989,86.059,86.01,13.46018543]
[1770701333235,8.7602989,86.058,86.01,13.46018543]
[1770701333439,8.7602989,86.057,86.01,13.46018543]
[1770701333644,8.7602989,86.056,86.01,13.46018543]
[1770701333843,8.7602989,86.055,86.012,13.45377858]
[1770701334049,8.7602989,86.054,86.012,13.45377858]
[1770701334247,8.7602989,86.053,86.012,13.45377858]
[1770701334443,8.7602989,86.052,86.012,13.45377858]
[1770701334649,8.7602989,86.051,86.012,13.45377858]
[1770701334854,3.99211106,86.06,86.012,13.45377858]
[1770701335148,8.76238112,86.059,86.012,13.45377858]
[1770701335347,8.76238112,86.058,86.012,13.45377858]
[1770701335550,8.76238112,86.057,86.012,13.45377858]
[1770701335749,8.76238112,86.056,86.012,13.45377858]
[1770701335940,8.76238112,86.055,86.012,13.45377858]
[1770701336143,8.76238112,86.054,86.012,13.45377858]
[1770701336351,8.76238112,86.053,86.012,13.45377858]
[1770701336551,8.76238112,86.052,86.012,13.45377858]
[1770701336752,8.76238112,86.051,86.012,13.45377858]
[1770701336952,3.99211106,86.06,86.012,13.45377858]
[1770701337146,8.76160817,86.059,86.012,13.45377858]
[1770701337346,8.76160817,86.058,86.012,13.45377858]
[1770701337552,10.4669,86.056,86.012,13.45377858]
[1770701337753,8.76160817,86.055,86.012,13.45377858]
[1770701337952,8.76160817,86.054,86.012,13.45377858]
[1770701338150,8.76160817,86.053,86.012,13.45377858]
[1770701338354,8.76160817,86.052,86.012,13.45377858]
[1770701338553,8.76160817,86.051,86.012,13.45377858]
[1770701338756,3.99211106,86.06,86.012,13.45377858]
[1770701338958,8.76163585,86.059,86.012,13.45377858]
[1770701339149,8.76163585,86.058,86.012,13.45377858]
[1770701339350,8.76163585,86.057,86.012,13.45377858]
[1770701339555,8.76163585,86.056,86.012,13.45377858]
[1770701339853,8.76163585,86.055,86.012,13.45377858]
[1770701340152,8.76163585,86.054,86.012,13.45377858]
[1770701340355,3.99211106,86.06,86.012,13.45377858]
[1770701340356,8.76163585,86.053,86.012,13.45377858]
[1770701340556,8.76163585,86.052,86.012,13.45377858]
[1770701340857,10.4644,86.076,86.021,8.93702773]
[1770701341048,3.99211106,86.08,86.021,8.93702773]
[1770701341750,3.99211106,86.08,86.02,3.99211106]
[1770701341751,3.99211106,86.08,86.024,8.9341515]
[1770701341951,3.99211106,86.09,86.031,8.9341515]
[1770701342850,3.99211106,86.09,86.04,8.87760718]
[1770701345452,3.99211106,86.08,86.04,8.87760718]
[1770701346155,3.99211106,86.07,86.04,8.87760718]
[1770701352563,3.99211106,86.08,86.04,8.87760718]
[1770701352760,8.72889373,86.079,86.04,8.87760718]
[1770701352960,8.72889373,86.078,86.04,8.87760718]
[1770701353166,8.72889373,86.077,86.04,8.87760718]
[1770701353353,8.72889373,86.076,86.04,8.87760718]
[1770701353556,8.72889373,86.075,86.04,8.87760718]
[1770701353752,8.72889373,86.074,86.04,8.87760718]
[1770701353957,3.99211106,86.08,86.04,8.87760718]
[1770701354158,8.72862787,86.079,86.04,8.87760718]
[1770701354364,8.72862787,86.078,86.04,8.87760718]
[1770701354565,8.72862787,86.077,86.04,8.87760718]
[1770701354764,8.72862787,86.076,86.04,8.87760718]
[1770701354963,8.72862787,86.075,86.04,8.87760718]
[1770701355164,8.72862787,86.074,86.04,8.87760718]
[1770701355364,3.99211106,86.08,86.04,8.87760718]
[1770701355565,8.72790931,86.079,86.04,8.87760718]
[1770701355764,8.72790931,86.078,86.04,8.87760718]
[1770701356064,8.72790931,86.077,86.04,8.87760718]
[1770701356264,8.72790931,86.076,86.04,8.87760718]
[1770701356464,8.72790931,86.075,86.04,8.87760718]
[1770701356764,8.72790931,86.074,86.04,8.87760718]
[1770701356966,3.99211106,86.08,86.04,8.87760718]
[1770701357264,8.72743673,86.079,86.04,8.87760718]
[1770701357465,8.72743673,86.078,86.04,8.87760718]
[1770701357666,8.72743673,86.077,86.04,8.87760718]
[1770701357865,8.72743673,86.076,86.04,8.87760718]
[1770701358168,8.72743673,86.075,86.04,8.87760718]
[1770701358367,3.99211106,86.08,86.04,8.87760718]
[1770701358566,8.72624039,86.079,86.04,8.87760718]
[1770701358766,8.72624039,86.078,86.04,8.87760718]
[1770701359066,8.72624039,86.077,86.04,8.87760718]
[1770701359266,8.72624039,86.076,86.04,8.87760718]
[1770701359466,8.72624039,86.075,86.04,8.87760718]
[1770701359670,3.99211106,86.08,86.04,8.87760718]
[1770701359973,8.72589114,86.079,86.04,8.87760718]
[1770701360166,8.72589114,86.078,86.04,8.87760718]
[1770701360464,8.72589114,86.077,86.04,8.87760718]
[1770701360665,8.72589114,86.076,86.04,8.87760718]
[1770701360861,8.72589114,86.075,86.04,8.87760718]
[1770701361166,3.99211106,86.08,86.04,8.87760718]
[1770701361364,8.72226752,86.079,86.04,8.87760718]
[1770701361566,8.72226752,86.078,86.04,8.87760718]
[1770701361766,8.72226752,86.077,86.04,8.87760718]
[1770701361968,8.72226752,86.076,86.04,8.87760718]
[1770701362169,8.72226752,86.075,86.04,8.87760718]
[1770701362368,3.99211106,86.08,86.04,8.87760718]
[1770701362570,8.72206873,86.079,86.04,8.87760718]
[1770701362770,8.72206873,86.078,86.04,8.87760718]
[1770701363070,8.72206873,86.077,86.04,8.87760718]
[1770701363270,8.72206873,86.076,86.04,8.87760718]
[1770701363570,8.72206873,86.075,86.04,8.87760718]
[1770701363872,3.99211106,86.08,86.04,8.87760718]
[1770701364075,8.72230508,86.079,86.04,8.87760718]
[1770701364370,8.72230508,86.078,86.04,8.87760718]
[1770701364572,8.72230508,86.077,86.04,8.87760718]
[1770701364872,8.72230508,86.076,86.04,8.87760718]
[1770701365072,3.99211106,86.08,86.04,8.87760718]
[1770701365272,8.72127107,86.079,86.04,8.87760718]
[1770701365572,8.72127107,86.078,86.04,8.87760718]
[1770701365770,8.72127107,86.077,86.04,8.87760718]
[1770701365973,8.72127107,86.077,85.974,34.87]
[1770701365974,14.45971106,86.05,86.004,8.85916299]
[1770701366275,3.99211106,86.07,86.011,8.85707453]
[1770701366576,8.71966466,86.069,86.013,8.85707453]
[1770701366767,8.71966466,86.068,86.013,8.85707453]
[1770701367066,8.71966466,86.067,86.013,8.85707453]
[1770701367264,8.71966466,86.066,86.013,8.85707453]
[1770701367475,3.99211106,86.07,86.013,8.85707453]
[1770701367678,8.72076659,86.069,86.018,10.4714]
[1770701367967,8.72076659,86.068,86.019,8.85500929]
[1770701368173,3.99211106,86.08,86.021,8.85296873]
[1770701368372,8.72084427,86.079,86.021,8.85296873]
[1770701368575,8.72084427,86.078,86.021,8.85296873]
[1770701368874,8.72084427,86.077,86.021,8.85296873]
[1770701369075,8.72084427,86.076,86.021,8.85296873]
[1770701369277,8.72084427,86.075,86.021,8.85296873]
[1770701369479,8.72084427,86.074,86.021,8.85296873]
[1770701369679,8.72084427,86.073,86.024,10.4707]
[1770701369979,8.72084427,86.072,86.025,8.85094238]
[1770701370172,8.72084427,86.071,86.025,8.85094238]
[1770701370377,3.99211106,86.08,86.025,8.85094238]
[1770701370579,8.72305977,86.079,86.025,8.85094238]
[1770701370776,8.72305977,86.078,86.025,8.85094238]
[1770701370977,8.72305977,86.077,86.025,8.85094238]
[1770701371180,8.72305977,86.076,86.025,8.85094238]
[1770701371380,8.72305977,86.075,86.025,8.85094238]
[1770701371576,8.72305977,86.074,86.025,8.85094238]
[1770701371881,8.72305977,86.073,86.025,8.85094238]
[1770701372074,3.99211106,86.08,86.025,8.85094238]
[1770701372270,8.71490726,86.079,86.025,8.85094238]
[1770701372478,8.71490726,86.078,86.025,8.85094238]
[1770701372679,8.71490726,86.077,86.025,8.85094238]
[1770701372880,8.71490726,86.076,86.025,8.85094238]
[1770701373080,8.71490726,86.075,86.025,8.85094238]
[1770701373284,8.71490726,86.074,86.025,8.85094238]
[1770701373478,8.71490726,86.073,86.025,8.85094238]
[1770701373782,8.71490726,86.072,86.025,8.85094238]
[1770701373983,8.71490726,86.071,86.025,8.85094238]
[1770701374182,8.71490726,86.07,86.025,8.85094238]
[1770701374383,3.99211106,86.08,86.025,8.85094238]
[1770701374584,8.71617124,86.079,86.025,8.85094238]
[1770701374884,8.71617124,86.078,86.025,8.85094238]
[1770701375085,8.71617124,86.077,86.025,8.85094238]
[1770701375284,8.71617124,86.076,86.025,8.85094238]
[1770701375487,8.71617124,86.075,86.025,8.85094238]
[1770701375680,8.71617124,86.074,86.025,8.85094238]
[1770701375880,8.71617124,86.073,86.025,8.85094238]
[1770701376086,8.71617124,86.072,86.025,8.85094238]
[1770701376382,8.71822043,86.071,86.025,8.85094238]
[1770701376584,3.99211106,86.08,86.025,8.85094238]
[1770701376785,8.71822043,86.079,86.025,8.85094238]
[1770701376983,8.71822043,86.078,86.025,8.85094238]
[1770701377183,3.99211106,86.08,86.025,8.85094238]
[1770701377184,8.71822043,86.077,86.025,8.85094238]
[1770701377485,8.71822043,86.076,86.025,8.85094238]
[1770701377778,8.71822043,86.075,86.025,8.85094238]
[1770701377974,8.71822043,86.074,86.025,8.85094238]
[1770701378178,8.71822043,86.073,86.025,8.85094238]
[1770701378373,8.71822043,86.072,86.025,8.85094238]
[1770701378585,8.71822043,86.071,86.025,8.85094238]
[1770701378775,8.71822043,86.07,86.025,8.85094238]
[1770701378972,8.71822043,86.069,86.025,8.85094238]
[1770701379177,8.71822043,86.068,86.025,8.85094238]
[1770701379383,8.71822043,86.067,86.025,8.85094238]
[1770701379572,3.99211106,86.08,86.025,8.85094238]
[1770701379777,8.72251243,86.079,86.025,8.85094238]
[1770701380082,8.72251243,86.078,86.025,8.85094238]
[1770701380283,8.72251243,86.077,86.025,8.85094238]
[1770701380582,8.72251243,86.076,86.028,8.83021664]
[1770701380884,8.72251243,86.076,85.98,34.87]
[1770701380885,8.72251243,86.075,86.031,8.83021664]
[1770701381087,3.99211106,86.09,86.031,8.83021664]
[1770701381278,8.72675368,86.089,86.031,8.83021664]
[1770701381478,8.72675368,86.088,86.031,8.83021664]
[1770701381678,8.72675368,86.087,86.037,8.8284596]
[1770701381882,8.72675368,86.086,86.037,8.8284596]
[1770701382080,8.72675368,86.085,86.037,8.8284596]
[1770701382374,8.72675368,86.084,86.037,8.8284596]
[1770701382579,8.72675368,86.083,86.037,8.8284596]
[1770701382779,8.72675368,86.082,86.037,8.8284596]
[1770701382979,8.72675368,86.081,86.037,8.8284596]
[1770701383180,8.72675368,86.08,86.037,8.8284596]
[1770701383476,8.72675368,86.079,86.037,8.8284596]
[1770701383677,8.72675368,86.078,86.037,8.8284596]
[1770701383878,3.99211106,86.09,86.037,8.8284596]
[1770701384079,8.73015878,86.089,86.037,8.8284596]
[1770701384276,3.99211106,86.09,86.037,8.8284596]
[1770701384277,8.73015878,86.088,86.037,8.8284596]
[1770701384480,8.73015878,86.087,86.037,8.8284596]
[1770701384681,8.73015878,86.086,86.037,8.8284596]
[1770701384881,8.73015878,86.085,86.037,8.8284596]
[1770701385184,3.99211106,86.08,86.037,8.8284596]
[1770701385387,10.4626,86.091,86.037,8.8284596]
[1770701385388,8.73015878,86.079,86.037,8.8284596]
[1770701385592,8.73015878,86.078,86.037,8.8284596]
[1770701385790,3.99211106,86.08,86.037,8.8284596]
[1770701385979,8.73190924,86.079,86.037,8.8284596]
[1770701386182,8.73190924,86.078,86.037,8.8284596]
[1770701386383,8.73190924,86.077,86.037,8.8284596]
[1770701386690,8.73190924,86.076,86.037,8.8284596]
[1770701386886,8.73190924,86.075,86.037,8.8284596]
[1770701387088,8.73190924,86.074,86.037,8.8284596]
[1770701387393,8.73190924,86.073,86.037,8.8284596]
[1770701387686,3.99211106,86.08,86.037,8.8284596]
[1770701387892,8.73124142,86.079,86.039,8.81834958]
[1770701388089,8.73124142,86.078,86.039,8.81834958]
[1770701388285,8.73124142,86.077,86.039,8.81834958]
[1770701388491,3.99211106,86.09,86.044,8.81673102]
[1770701388684,8.73191747,86.089,86.044,8.81673102]
[1770701388889,8.73191747,86.088,86.044,8.81673102]
[1770701389089,8.73191747,86.087,86.044,8.81673102]
[1770701389295,8.73191747,86.086,86.044,8.81673102]
[1770701389497,8.73191747,86.085,86.044,8.81673102]
[1770701389796,8.73191747,86.084,86.044,8.81673102]
[1770701389995,8.73191747,86.083,86.044,8.81673102]
[1770701390294,8.73191747,86.082,86.044,8.81673102]
[1770701390597,8.73191747,86.081,86.044,8.81673102]
[1770701390794,12.72402853,86.08,86.036,19.28164203]
[1770701390991,8.73191747,86.079,86.036,8.81244203]
[1770701391191,8.73191747,86.078,86.036,8.81244203]
[1770701391396,8.73191747,86.077,86.036,8.81244203]
[1770701391695,8.73191747,86.076,86.036,8.81244203]
[1770701391898,8.73191747,86.075,86.036,8.81244203]
[1770701392200,8.73191747,86.074,86.036,8.81244203]
[1770701392399,3.99211106,86.08,86.036,8.81244203]
[1770701392699,8.73185799,86.079,86.036,8.81244203]
[1770701392902,8.73185799,86.078,86.036,8.81244203]
[1770701393096,8.73185799,86.077,86.036,8.81244203]
[1770701393401,8.73185799,86.076,86.036,8.81244203]
[1770701393602,8.73185799,86.075,86.036,8.81244203]
[1770701393796,8.73185799,86.074,86.036,8.81244203]
[1770701393996,3.9896095,86.08,86.036,8.81244203]
[1770701394198,8.73173176,86.079,86.036,8.81244203]
[1770701394499,8.73173176,86.078,86.036,8.81244203]
[1770701394698,8.73173176,86.077,86.036,8.81244203]
[1770701394894,8.73173176,86.076,86.036,8.81244203]
[1770701395097,8.73173176,86.075,86.036,8.81244203]
[1770701395403,3.9896095,86.08,86.036,8.81244203]
[1770701395404,8.73173176,86.074,86.036,8.81244203]
[1770701395605,3.9896095,86.08,86.036,8.81244203]
[1770701395802,8.73148932,86.079,86.036,8.81244203]
[1770701396003,8.73148932,86.078,86.036,8.81244203]
[1770701396202,8.73148932,86.077,86.036,8.81244203]
[1770701396502,8.73148932,86.076,86.036,8.81244203]
[1770701396704,8.73148932,86.075,86.036,8.81244203]
[1770701396894,8.73148932,86.074,86.036,8.81244203]
[1770701397094,3.9896095,86.08,86.036,8.81244203]
[1770701397300,8.73126615,86.079,86.036,8.81244203]
[1770701397600,8.73126615,86.078,86.036,8.81244203]
[1770701397793,8.73126615,86.077,86.036,8.81244203]
[1770701398002,8.73117235,86.076,86.036,8.81244203]
[1770701398202,8.73117235,86.075,86.036,8.81244203]
[1770701398404,8.73117235,86.074,86.036,8.81244203]
[1770701398604,3.9896095,86.08,86.036,8.81244203]
[1770701398904,8.73108486,86.079,86.036,8.81244203]
[1770701399099,8.73108486,86.078,86.036,8.81244203]
[1770701399300,8.73108486,86.077,86.036,8.81244203]
[1770701399504,8.73108486,86.076,86.036,8.81244203]
[1770701399703,8.73108486,86.075,86.036,8.81244203]
[1770701399905,8.73108486,86.074,86.036,8.81244203]
[1770701400204,3.9896095,86.08,86.036,8.81244203]
[1770701400400,3.9896095,86.08,85.987,20.9505]
[1770701400401,8.73033203,86.079,86.001,8.79772022]
[1770701400707,10.81565612,86.07,86.001,8.79772022]
[1770701400901,3.9896095,86.05,86.001,8.79772022]
[1770701401102,8.73033203,86.049,86.001,8.79772022]
[1770701401301,10.4682,86.045,86.001,8.79772022]
[1770701401503,3.9896095,86.05,86.001,8.79772022]
[1770701401704,8.71607864,86.049,86.001,8.79772022]
[1770701401900,8.71607864,86.048,86.004,8.79634355]
[1770701402099,3.9896095,86.05,86.004,8.79634355]
[1770701403004,8.71263227,86.049,86.004,8.79634355]
[1770701403205,8.71263227,86.048,86.004,8.79634355]
[1770701403406,3.9896095,86.05,86.004,8.79634355]
[1770701403712,8.70975996,86.049,86.004,8.79634355]
[1770701403911,3.9896095,86.04,85.993,10.4744]
[1770701404106,3.9896095,86.02,85.961,8.79230803]
[1770701404303,3.9896095,85.99,85.931,8.79230803]
[1770701404602,14.33910698,86.059,85.903,253.3508]
[1770701404603,8.70105021,86.018,85.945,8.79230803]
[1770701404809,3.9896095,86.0,85.945,8.79230803]
[1770701405909,3.9896095,86.0,85.947,8.79099579]
[1770701406216,10.4713,86.02,85.947,8.79099579]
[1770701406412,3.9896095,86.0,85.947,8.79099579]
[1770701406812,3.9896095,86.0,85.951,8.78969896]
[1770701407714,3.9896095,86.0,85.953,8.78841675]
[1770701407914,10.47,86.031,85.953,8.78841675]
[1770701408115,3.9896095,86.01,85.953,8.78841675]
[1770701408911,3.9896095,86.01,85.961,8.78714967]
[1770701409716,3.9896095,86.01,85.963,8.78590167]
[1770701410316,3.9896095,86.0,85.963,8.78590167]
[1770701410618,3.9896095,86.0,85.941,8.78466337]
[1770701410811,3.9896095,86.0,85.951,19.26426337]
[1770701411116,3.9896095,86.0,85.952,8.78466337]
[1770701411516,3.9896095,86.01,85.955,8.78343242]
[1770701412420,3.9896095,86.01,85.958,8.78223517]
[1770701414116,3.9896095,86.0,85.958,8.78223517]
[1770701415314,3.9896095,86.0,85.933,10.4817]
[1770701415510,3.9896095,85.98,85.932,8.77867072]
[1770701415920,162.8919,86.018,85.899,8.77867072]
[1770701416218,3.9896095,85.96,85.901,8.77751719]
[1770701416521,3.9896095,85.99,85.931,8.77751719]
[1770701416726,3.9896095,86.0,85.931,8.77751719]
[1770701417023,162.8133,86.059,85.931,8.77751719]
[1770701417024,3.9896095,85.99,85.931,8.77751719]
[1770701417224,3.9896095,85.98,85.931,8.77751719]
[1770701417816,10.81565612,86.03,85.891,8.77637432]
[1770701417817,3.9896095,85.95,85.891,8.77637432]
[1770701418217,197.7679,86.014,85.891,8.77637432]
[1770701418218,8.67246838,86.011,85.891,8.77637432]
[1770701418515,3.9896095,85.96,85.891,8.77637432]
[1770701418916,3.9896095,85.96,85.901,8.77524869]
[1770701419525,3.9896095,85.95,85.901,8.77524869]
[1770701420720,3.9896095,85.96,85.901,8.77524869]
[1770701420918,3.9896095,85.96,85.906,8.77387271]
[1770701421119,3.9896095,85.97,85.906,8.77387271]
[1770701421320,3.9896095,85.96,85.906,8.77387271]
[1770701421721,3.9896095,85.95,85.906,8.77387271]